Workbook

Sheet Read Me
F3: NSW Department of Planning, Industry and Environment 4 Parramatta Square Parramatta NSW 2150 | G3: T (02) 9995 5000 E nabers@environment.nsw.gov.au nabers.gov.au
B4: NABERS Cogeneration Calculator
B5: Version: | D5: v3.0 | E5: Date: | F5: 2025-07-01
B6: This tool is to be used to calculate the assessable energy from cogeneration and trigeneration systems.
B7: Rateable energy inputs are calculated based on the relative emissions, based on apportionted energy outputs of the system
B9: How to use this calculator
B10: 1 | C10: Enter data in grey cell cells
B11: 2 | C11: Intermediate calculations and unused inputs are in blue cells and should not be modified
B12: 3 | C12: Outputs are in yellow cells.
B13: 4 | C13: Blue cells should not be edited, and will be empty or selected as <Select> for a dropdown cell. They will become grey when they need to be edited.
B14: 5 | C14: Pale blue cells in tables are locked and are calculation cells. They cannot be modified.
B15: 6 | C15: There are Data validation messages across some tabs. For example "Check ###" messages will indicate if rows or columns haven't been completed properly. Please make sure you have addressed all error messages before submitting the spreadsheet.
C17: If you have any issues using the spreadsheet, please contact the NABERS team
C19: Updates
C20: Version | D20: Date | E20: Emissions Factors | G20: Notes
C21: v3.0 | D21: 2025-06-01 | E21: NGA 2024 | G21: Update of emission factors.
C22: V2.0 | D22: 2023-06-01 | E22: NGA 2022 - Feb 2023 | G22: Update of emission factors.
C23: V1.3 | D23: 2022-05-01 | E23: NGA 2021 - Aug 2021 | G23: Review and update of calculator to align with update of Ruling document.
C24: V1.2 | D24: 2021-12-01 | E24: NGA 2020 - Oct 2020 | G24: Updated Emissions Factors, Interface, Verifications, Data Handling.
C25: V1.1 | D25: 2020-06-01 | G25: Updated Rating Calculator, including improved user inputs & interface, data verification, and L1 audit checks.
C26: V1.1 (draft) | D26: 2019-12-01 | G26: Draft updated calculator.
C27: V1.0 | D27: 2017-02-01 | G27: First Release.

Sheet Assessment form
E2: NABERS Energy
E3: Cogeneration Calculator
E5: Version 2.0 (1 June 2023)
B10: Step 1: Determining the system location | AB10: Validations
B12: Step 1 | C12: Where is the co/trigeneration plant physically located? | G12: (i) | J12: ü
C13: Enter the postcode for the Rated Premises | G13: (i) | J13: ü
C14: Is the system a cogen or trigeneration system? | G14: (i) | J14: ü | AB14: =IF($I$22<>"<Select>",1,0) -> 1
B16: Step 2: Measuring energy use and generation products
L17: Step 2: Measuring energy use and generation products for apportionment
B18: Step 2a | C18: Generator fuel consumption by the co/trigen system [MJ] | G18: (i) | J18: ü
C19: Auxiliary electricity used by the co/trigen system [kWh] | G19: (i) | J19: ü
B21: Step 2b
B22: Step 2b | C22: Have all electricity outputs been metered? | G22: (i) | J22: ü | AB22: =IF($I$22<>"<Select>",1,0) -> 1
C23: Electricity generation [kWh] | G23: (i) | J23: ü | AB23: =IF($I$22="No",1,IF(AND(ISNUMBER(I23),I23>0),1,0)) -> 0
C24: Have all useful thermal energy outcomes been metered? | G24: (i) | J24: ü | AB24: =IF($I$22<>"Yes",1,IF(I24<>"<Select>",1,0)) -> 1
C25: Metered Heating hot water [kWhth] | G25: (i) | J25: ü | M25: =IF(I29=0,"",IF(OR(I29="NA",I29=""),1,IF(I29>0,I38/I29,0))) ->  | O25: =IF(M25="","",1-M25) ->  | S25: =IF(I37=0,"",IF(OR(I28="NA",I28=""),1,IF(I28>0,I37/I28,0))) ->  | U25: =IF(S25="","",1-S25) ->  | X25: =IF(I30=0,"",IF(OR(I39="NA",I39=""),1,IF(I39>0,I39/I30,0))) ->  | Z25: =IF(X25="","",1-X25) ->  | AB25: =IF(OR($I$22="No",I23="No"),1,IF(AND(ISNUMBER(I25),I25>=0),1,0)) -> 0
C26: Metered Chilled water generation [kWhth] | G26: (i) | J26: ü | AB26: =IF(OR($I$22="No",I23="No"),1,IF(AND(ISNUMBER(I26),I26>=0),1,0)) -> 0
C27: Default thermal water generation (when thermal outputs unmetered) [kWhth] | I27: =MAX(0.75*I18/3.6-IF(I22<>"Yes",0,I23),0) -> 0
C28: Used value for generated Electricity [kWh] | I28: =IF(I22<>"Yes",0,I23) -> 0
C29: Used value for generated Heating Hot Water [kWhth] | I29: =IF(I22<>"Yes",IF(I14="Cogen",I27,0),IF(I24<>"Yes",IF(I14="Cogen",I27,0),I25)) -> 0 | N29: =IF(I29=0,"NA",CONCATENATE(FIXED(I29,0)," kWh")) -> NA | T29: =IF(I28=0,"NA",CONCATENATE(FIXED(I28,0)," kWh")) -> NA | Y29: =IF(I30=0,"NA",CONCATENATE(FIXED(I30,0)," kWh")) -> NA
C30: Used value for generated Chilled Water [kWhth] | I30: =IF(I22<>"Yes",IF(I14="Trigen",I27,0),IF(I24<>"Yes",IF(I14="Trigen",I27,0),I26)) -> 0
B32: Step 2c | C32: Was electricity to the Rated Premises submetered? | G32: (i) | J32: ü | AB32: =IF($I$22<>"Yes",1,IF(I32<>"<Select>",1,0)) -> 1
C33: Electricity from co/trigen plant to Rated Premises [kWhe] | G33: (i) | J33: ü | L33: Step 3: Allocating energy to the Rated premises | AB33: =IF(OR($I$22<>"Yes",I32="No"),1,IF(AND(ISNUMBER(I33),I33>0),1,0)) -> 1
C34: Was thermal energy to the Rated Premises themally metered? | G34: (i) | J34: ü | AB34: =IF(OR($I$22<>"Yes",I24="No"),1,IF(I34<>"<Select>",1,0)) -> 1
C35: Metered Heating hot water from co/trigen plant to Rated Premises [kWhth] | G35: (i) | J35: ü | AB35: =IF(OR($I$22<>"Yes",I23="No",I34="No"),1,IF(AND(ISNUMBER(I35),I35>=0),1,0)) -> 1
C36: Metered Chilled water from co/trigen plant to Rated Premises [kWhth] | G36: (i) | J36: ü | S36: =CONCATENATE("Fuel input: ",FIXED($I$43,0)," MJ") ->  | AB36: =IF(OR($I$22<>"Yes",I23="No",I34="No"),1,IF(AND(ISNUMBER(I36),I36>=0),1,0)) -> 1
C37: Used value for metered electricity to Rated Premises [kWh] | I37: =IF(I32<>"Yes",I28,IF(I33=0,I28,I33)) -> 0
C38: Used value for metered Heating hot water from co/trigen plant to Rated Premises [kWhth] | I38: =IF(I34<>"Yes",I29,IF(I35=0,I29,I35)) -> 0
C39: Used value for metered Chilled water from co/trigen plant to Rated Premises [kWhth] | I39: =IF(I34<>"Yes",I30,IF(I36=0,I30,I36)) -> 0
S40: =CONCATENATE("Auxiliaries: ",FIXED($I$44,0)," kWh") ->  | W40: Rated Premises
B41: Step 3: Allocating energy and emissions to users | S41: =IF(I12="Offsite",CONCATENATE("Offsite cogen electricity: ",FIXED($I$46,0)," kWh"),"") -> 
S42: =IF(I12="Offsite",CONCATENATE("Offsite cogen electricity GreenPower: ",FIXED($I$47*100,0)," %"),"") -> 
B43: Step 3 | C43: Generator fuel allocated to Rated Premises (MJ) | G43: (i) | I43: =IF(ISNUMBER(F78),IF(I12="Onsite",$F$78*I18,$F$76*I18),"") ->  | J43: ü | AB43: =IF(AND(ISNUMBER(I43),I43>=0),1,0) -> 0
C44: Auxiliary electricity allocated to Rated Premises (kWh) | G44: (i) | I44: =IF(ISNUMBER(F78),IF(I12="Onsite",$F$78*I19,$F$78*I19),"") ->  | J44: ü | AB44: =IF(AND(ISNUMBER(I44),I44>=0),1,0) -> 0
C46: Offsite cogeneration electricity allocated to rated premises (kWh) | G46: (i) | I46: =IF(ISNUMBER(F78),IF(I12="Onsite",0,F72*I23),"") ->  | J46: ü | AB46: =IF(AND(ISNUMBER(I46),I46>=0),1,0) -> 0
C47: GreenPower % for offsite cogen elec | G47: (i) | I47: =IF(ISNUMBER(F78),IF(I12="Onsite",0,I88),"") ->  | J47: ü | AB47: =IF(AND(ISNUMBER(I44),I44>=0),1,0) -> 0
B54: rows 46 to 70 hidden
B55: Calculations
B57: Parameters
B58: State | F58: =VLOOKUP('Assessment form'!I13,Climate_pcode_xref!A2:C3727,3,FALSE) -> 
B59: SGEelec, kgCO2/kWh | F59: =VLOOKUP('Assessment form'!F58,NGA_factors!E2:N9,10,FALSE) ->  | G59: kgCO2/kWh
B60: SGEheat = SGEgas, kgCO2/MJ | F60: =VLOOKUP('Assessment form'!F58,NGA_factors!E10:N17,10,FALSE) ->  | G60: kgCO2/MJ
B62: Apportioning to power and thermal energy outputs
B63: Emissions to electricity generation | F63: =I28*F59 ->  | G63: kgCO2
B64: Emissions to heating hot water | F64: =(I29*3.6)/0.75*F60 ->  | G64: kgCO2
B65: Emissions to chilled water | F65: =I30/(4)*F59 ->  | G65: kgCO2
B66: Total emissions | F66: =SUM(F63:F65) ->  | G66: kgCO2
B68: Percentage emissions to electricity | F68: =F63/$F$66 -> 
B69: Percentage emissions to heating hot water | F69: =F64/$F$66 -> 
B70: Percentage emissions to chilled water | F70: =F65/$F$66 -> 
B72: Electricity to rated premises | F72: =IF(OR(I28="NA",I28=""),1,IF(I28>0,I37/I28,0)) -> 0
B73: Heating hot water to rated premises | F73: =IF(OR(I29="NA",I29=""),1,IF(I29>0,I38/I29,0)) -> 0
B74: Chilled water to rated premises | F74: =IF(OR(I30="NA",I30=""),1,IF(I30>0,I39/I30,0)) -> 0
B76: Inputs allocated to Rated Premises (thermal) | F76: =F69*F73+F70*F74 -> 
B77: Inputs allocated to Rated Premises (power) | F77: =F68*F72 -> 
F78: =SUM(F76:F77) -> 
B82: Step 3a | C82: Energy inputs allocated to electricity generation (%) | G82: (i) | I82: =IF($I$22="Yes",F68,"") ->  | J82: ü | L82: Step 3a: Allocating inputs to thermal and electricity outputs | AB82: =IF(AND(ISNUMBER(I82),I82>=0),1,0) -> 0
C83: Energy inputs allocated to heating hot water generation (%) | G83: (i) | I83: =IF($I$22="Yes",F69,"") ->  | J83: ü | AB83: =IF(AND(ISNUMBER(I83),I83>=0),1,0) -> 0
C84: Energy inputs allocated to chilled water generation (%) | G84: (i) | I84: =IF($I$22="Yes",F70,"") ->  | J84: ü | V84: =IF(I22="No"," Not required",IF(SUM(AB22:AB26)<5," Step 2b is incomplete",CONCATENATE(" ",FIXED(I83*100,1),"% to heating hot water users"))) -> Step 2b is incomplete | AB84: =IF(AND(ISNUMBER(I84),I84>=0),1,0) -> 0
P85: =CONCATENATE("Fuel: ",FIXED($I$18,0)," MJ") -> Fuel: 0 MJ
B86: Offsite Cogen Associated fuel input (MJ) | I86: =IF(ISNUMBER(F78),IF(I12="Onsite",0,F77*I18),"") ->  | P86: =CONCATENATE("Auxiliaries: ",FIXED($I$19,0)," kWh") -> Auxiliaries: 0 kWh | W86: =IF(I22="No","Not required",IF(SUM(AB22:AB26)<5,"Step 2b is incomplete",CONCATENATE(FIXED(I82*100,1),"% to electricity users"))) -> Step 2b is incomplete
B87: Equivalent Elec (kWh) for offsite cogen elec corresponding gas use | I87: =I86*F60/F59 -> 
B88: GreenPower % for offsite cogen elec | I88: =(I46-I87)/I46 ->  | V88: =IF(I22="No"," Not required",IF(SUM(AB22:AB26)<5," Step 2b is incomplete",CONCATENATE(" ",FIXED(I84*100,1),"% to chilled water users"))) -> Step 2b is incomplete

Sheet NGA_factors (hidden)
A1: id | B1: fuelId | C1: fuel | D1: stateId | E1: state | F1: S1_EF_CO2 | G1: S1_EF_CH4 | H1: S1_EF_N2O | I1: S2_EF | J1: S3_EF | K1: Emission Factor | L1: Energy content factor | M1: Energy content factor unit | N1: SGE123 | O1: SGE12 | P1: SGE Unit | Q1: Release date | S1: Data from Column F, I & J from https://www.dcceew.gov.au/sites/default/files/documents/national-greenhouse-accounts-factors-2022.pdf
A2: 1 | B2: 1 | C2: Electricity | D2: 7 | E2: ACT | F2: 0 | G2: 0 | H2: 0 | I2: 0.66 | J2: 0.04 | K2: kgCO2-e/kWh | L2: n/a | N2: =SUM(F2:J2) -> 0.7 | O2: =SUM(F2:I2) -> 0.66 | P2: kgCO2-e/kWh | Q2: 2024
A3: 2 | B3: 1 | C3: Electricity | D3: 6 | E3: NSW | F3: 0 | G3: 0 | H3: 0 | I3: 0.66 | J3: 0.04 | K3: kgCO2-e/kWh | L3: n/a | N3: =SUM(F3:J3) -> 0.7 | O3: =SUM(F3:I3) -> 0.66 | P3: kgCO2-e/kWh | Q3: 2024
A4: 3 | B4: 1 | C4: Electricity | D4: 8 | E4: NT | F4: 0 | G4: 0 | H4: 0 | I4: 0.56 | J4: 0.07 | K4: kgCO2-e/kWh | L4: n/a | N4: =SUM(F4:J4) -> 0.63 | O4: 0.56 | P4: kgCO2-e/kWh | Q4: 2024
A5: 4 | B5: 1 | C5: Electricity | D5: 5 | E5: QLD | F5: 0 | G5: 0 | H5: 0 | I5: 0.71 | J5: 0.1 | K5: kgCO2-e/kWh | L5: n/a | N5: 0.81 | O5: 0.71 | P5: kgCO2-e/kWh | Q5: 2024
A6: 5 | B6: 1 | C6: Electricity | D6: 4 | E6: SA | F6: 0 | G6: 0 | H6: 0 | I6: 0.23 | J6: 0.05 | K6: kgCO2-e/kWh | L6: n/a | N6: 0.28 | O6: 0.23 | P6: kgCO2-e/kWh | Q6: 2024
A7: 6 | B7: 1 | C7: Electricity | D7: 3 | E7: TAS | F7: 0 | G7: 0 | H7: 0 | I7: 0.15 | J7: 0.03 | K7: kgCO2-e/kWh | L7: n/a | N7: 0.18 | O7: 0.15 | P7: kgCO2-e/kWh | Q7: 2024
A8: 7 | B8: 1 | C8: Electricity | D8: 2 | E8: VIC | F8: 0 | G8: 0 | H8: 0 | I8: 0.77 | J8: 0.09 | K8: kgCO2-e/kWh | L8: n/a | N8: 0.86 | O8: 0.77 | P8: kgCO2-e/kWh | Q8: 2024
A9: 8 | B9: 1 | C9: Electricity | D9: 1 | E9: WA | F9: 0 | G9: 0 | H9: 0 | I9: 0.61 | J9: 0.09 | K9: kgCO2-e/kWh | L9: n/a | N9: 0.7 | O9: 0.61 | P9: kgCO2-e/kWh | Q9: 2024
A10: 9 | B10: 2 | C10: Gas | D10: 7 | E10: ACT | F10: 51.53 | G10: 0.1 | H10: 0.03 | I10: 0 | J10: 13.1 | K10: kgCO2-e/GJ | L10: n/a | N10: =SUM(F10:J10)/1000 -> 0.06476 | O10: =SUM(F10:I10)/1000 -> 0.05166 | P10: kgCO2-e/MJ | Q10: 2024
A11: 10 | B11: 2 | C11: Gas | D11: 6 | E11: NSW | F11: 51.53 | G11: 0.1 | H11: 0.03 | I11: 0 | J11: 13.1 | K11: kgCO2-e/GJ | L11: n/a | N11: =SUM(F11:J11)/1000 -> 0.06476 | O11: 0.05166 | P11: kgCO2-e/MJ | Q11: 2024
A12: 11 | B12: 2 | C12: Gas | D12: 8 | E12: NT | F12: 51.53 | G12: 0.1 | H12: 0.03 | I12: 0 | J12: 4.1 | K12: kgCO2-e/GJ | L12: n/a | N12: =SUM(F12:J12)/1000 -> 0.05576 | O12: 0.05166 | P12: kgCO2-e/MJ | Q12: 2024
A13: 12 | B13: 2 | C13: Gas | D13: 5 | E13: QLD | F13: 51.53 | G13: 0.1 | H13: 0.03 | I13: 0 | J13: 8.8 | K13: kgCO2-e/GJ | L13: n/a | N13: =SUM(F13:J13)/1000 -> 0.06046 | O13: 0.05166 | P13: kgCO2-e/MJ | Q13: 2024
A14: 13 | B14: 2 | C14: Gas | D14: 4 | E14: SA | F14: 51.53 | G14: 0.1 | H14: 0.03 | I14: 0 | J14: 10.7 | K14: kgCO2-e/GJ | L14: n/a | N14: =SUM(F14:J14)/1000 -> 0.06236 | O14: 0.05166 | P14: kgCO2-e/MJ | Q14: 2024
A15: 14 | B15: 2 | C15: Gas | D15: 3 | E15: TAS | F15: 51.53 | G15: 0.1 | H15: 0.03 | I15: 0 | J15: 4 | K15: kgCO2-e/GJ | L15: n/a | N15: 0.0573 | O15: 0.05166 | P15: kgCO2-e/MJ | Q15: 2024
A16: 15 | B16: 2 | C16: Gas | D16: 2 | E16: VIC | F16: 51.53 | G16: 0.1 | H16: 0.03 | I16: 0 | J16: 4 | K16: kgCO2-e/GJ | L16: n/a | N16: 0.0573 | O16: 0.05166 | P16: kgCO2-e/MJ | Q16: 2024
A17: 16 | B17: 2 | C17: Gas | D17: 1 | E17: WA | F17: 51.53 | G17: 0.1 | H17: 0.03 | I17: 0 | J17: 4.1 | K17: kgCO2-e/GJ | L17: n/a | N17: =SUM(F17:J17)/1000 -> 0.05576 | O17: 0.05166 | P17: kgCO2-e/MJ | Q17: 2024
A18: 17 | B18: 3 | C18: Coal | D18: 7 | E18: ACT | F18: 90.24 | G18: 0.045 | H18: 0.25 | I18: 0 | J18: 3 | K18: kgCO2-e/GJ | L18: =(22.1+27)/2 -> 24.55 | M18: GJ/t | N18: 2.43648 | O18: =SUM(F18:I18)*L18/1000 -> 2.22263425 | P18: kgCO2-e/kg | Q18: 2024
A19: 18 | B19: 3 | C19: Coal | D19: 6 | E19: NSW | F19: 90.24 | G19: 0.045 | H19: 0.25 | I19: 0 | J19: 3 | K19: kgCO2-e/GJ | L19: 24.55 | M19: GJ/t | N19: 2.43648 | O19: =SUM(F19:I19)*L19/1000 -> 2.22263425 | P19: kgCO2-e/kg | Q19: 2024
A20: 19 | B20: 3 | C20: Coal | D20: 8 | E20: NT | F20: 90.24 | G20: 0.045 | H20: 0.25 | I20: 0 | J20: 3 | K20: kgCO2-e/GJ | L20: 24.55 | M20: GJ/t | N20: 2.43648 | O20: 2.22263425 | P20: kgCO2-e/kg | Q20: 2024
A21: 20 | B21: 3 | C21: Coal | D21: 5 | E21: QLD | F21: 90.24 | G21: 0.045 | H21: 0.25 | I21: 0 | J21: 3 | K21: kgCO2-e/GJ | L21: 24.55 | M21: GJ/t | N21: 2.43648 | O21: 2.22263425 | P21: kgCO2-e/kg | Q21: 2024
A22: 21 | B22: 3 | C22: Coal | D22: 4 | E22: SA | F22: 90.24 | G22: 0.045 | H22: 0.25 | I22: 0 | J22: 3 | K22: kgCO2-e/GJ | L22: 24.55 | M22: GJ/t | N22: 2.43648 | O22: 2.22263425 | P22: kgCO2-e/kg | Q22: 2024
A23: 22 | B23: 3 | C23: Coal | D23: 3 | E23: TAS | F23: 90.24 | G23: 0.045 | H23: 0.25 | I23: 0 | J23: 3 | K23: kgCO2-e/GJ | L23: 24.55 | M23: GJ/t | N23: 2.43648 | O23: 2.22263425 | P23: kgCO2-e/kg | Q23: 2024
A24: 23 | B24: 3 | C24: Coal | D24: 2 | E24: VIC | F24: 90.24 | G24: 0.045 | H24: 0.25 | I24: 0 | J24: 3 | K24: kgCO2-e/GJ | L24: 24.55 | M24: GJ/t | N24: 2.43648 | O24: 2.22263425 | P24: kgCO2-e/kg | Q24: 2024
A25: 24 | B25: 3 | C25: Coal | D25: 1 | E25: WA | F25: 90.24 | G25: 0.045 | H25: 0.25 | I25: 0 | J25: 3 | K25: kgCO2-e/GJ | L25: 24.55 | M25: GJ/t | N25: 2.43648 | O25: 2.22263425 | P25: kgCO2-e/kg | Q25: 2024
A26: 25 | B26: 4 | C26: Oil | D26: 7 | E26: ACT | F26: 70.2 | G26: 0.1 | H26: 0.2 | I26: 0 | J26: 17.3 | K26: kgCO2-e/GJ | L26: 38.6 | M26: GJ/kL | N26: 3.3775 | O26: 2.70972 | P26: kgCO2-e/L | Q26: 2024
A27: 26 | B27: 4 | C27: Oil | D27: 6 | E27: NSW | F27: 70.2 | G27: 0.1 | H27: 0.2 | I27: 0 | J27: 17.3 | K27: kgCO2-e/GJ | L27: 38.6 | M27: GJ/kL | N27: 3.3775 | O27: 2.70972 | P27: kgCO2-e/L | Q27: 2024
A28: 27 | B28: 4 | C28: Oil | D28: 8 | E28: NT | F28: 70.2 | G28: 0.1 | H28: 0.2 | I28: 0 | J28: 17.3 | K28: kgCO2-e/GJ | L28: 38.6 | M28: GJ/kL | N28: 3.3775 | O28: 2.70972 | P28: kgCO2-e/L | Q28: 2024
A29: 28 | B29: 4 | C29: Oil | D29: 5 | E29: QLD | F29: 70.2 | G29: 0.1 | H29: 0.2 | I29: 0 | J29: 17.3 | K29: kgCO2-e/GJ | L29: 38.6 | M29: GJ/kL | N29: 3.3775 | O29: 2.70972 | P29: kgCO2-e/L | Q29: 2024
A30: 29 | B30: 4 | C30: Oil | D30: 4 | E30: SA | F30: 70.2 | G30: 0.1 | H30: 0.2 | I30: 0 | J30: 17.3 | K30: kgCO2-e/GJ | L30: 38.6 | M30: GJ/kL | N30: 3.3775 | O30: 2.70972 | P30: kgCO2-e/L | Q30: 2024
A31: 30 | B31: 4 | C31: Oil | D31: 3 | E31: TAS | F31: 70.2 | G31: 0.1 | H31: 0.2 | I31: 0 | J31: 17.3 | K31: kgCO2-e/GJ | L31: 38.6 | M31: GJ/kL | N31: 3.3775 | O31: 2.70972 | P31: kgCO2-e/L | Q31: 2024
A32: 31 | B32: 4 | C32: Oil | D32: 2 | E32: VIC | F32: 70.2 | G32: 0.1 | H32: 0.2 | I32: 0 | J32: 17.3 | K32: kgCO2-e/GJ | L32: 38.6 | M32: GJ/kL | N32: 3.3775 | O32: 2.70972 | P32: kgCO2-e/L | Q32: 2024
A33: 32 | B33: 4 | C33: Oil | D33: 1 | E33: WA | F33: 70.2 | G33: 0.1 | H33: 0.2 | I33: 0 | J33: 17.3 | K33: kgCO2-e/GJ | L33: 38.6 | M33: GJ/kL | N33: 3.3775 | O33: 2.70972 | P33: kgCO2-e/L | Q33: 2024
A34: 33 | B34: 5 | C34: LPG | D34: 7 | E34: ACT | F34: 60.6 | G34: 0 | H34: 0 | I34: 0 | J34: 20.2 | K34: kgCO2-e/GJ | L34: 0 | M34: GJ/kL | N34: 2.07656 | O34: 1.55742 | P34: kgCO2-e/L | Q34: 2024
A35: 34 | B35: 5 | C35: LPG | D35: 6 | E35: NSW | F35: 60.6 | G35: 0 | H35: 0 | I35: 0 | J35: 20.2 | K35: kgCO2-e/GJ | L35: 0 | M35: GJ/kL | N35: 2.07656 | O35: 1.55742 | P35: kgCO2-e/L | Q35: 2024
A36: 35 | B36: 5 | C36: LPG | D36: 8 | E36: NT | F36: 60.6 | G36: 0 | H36: 0 | I36: 0 | J36: 20.2 | K36: kgCO2-e/GJ | L36: 0 | M36: GJ/kL | N36: 2.07656 | O36: 1.55742 | P36: kgCO2-e/L | Q36: 2024
A37: 36 | B37: 5 | C37: LPG | D37: 5 | E37: QLD | F37: 60.6 | G37: 0 | H37: 0 | I37: 0 | J37: 20.2 | K37: kgCO2-e/GJ | L37: 0 | M37: GJ/kL | N37: 2.07656 | O37: 1.55742 | P37: kgCO2-e/L | Q37: 2024
A38: 37 | B38: 5 | C38: LPG | D38: 4 | E38: SA | F38: 60.6 | G38: 0 | H38: 0 | I38: 0 | J38: 20.2 | K38: kgCO2-e/GJ | L38: 0 | M38: GJ/kL | N38: 2.07656 | O38: 1.55742 | P38: kgCO2-e/L | Q38: 2024
A39: 38 | B39: 5 | C39: LPG | D39: 3 | E39: TAS | F39: 60.6 | G39: 0 | H39: 0 | I39: 0 | J39: 20.2 | K39: kgCO2-e/GJ | L39: 0 | M39: GJ/kL | N39: 2.07656 | O39: 1.55742 | P39: kgCO2-e/L | Q39: 2024
A40: 39 | B40: 5 | C40: LPG | D40: 2 | E40: VIC | F40: 60.6 | G40: 0 | H40: 0 | I40: 0 | J40: 20.2 | K40: kgCO2-e/GJ | L40: 0 | M40: GJ/kL | N40: 2.07656 | O40: 1.55742 | P40: kgCO2-e/L | Q40: 2024
A41: 40 | B41: 5 | C41: LPG | D41: 1 | E41: WA | F41: 60.6 | G41: 0 | H41: 0 | I41: 0 | J41: 20.2 | K41: kgCO2-e/GJ | L41: 0 | M41: GJ/kL | N41: 2.07656 | O41: 1.55742 | P41: kgCO2-e/L | Q41: 2024

Sheet Climate_pcode_xref (hidden)
A1: Postcode | B1: Climate_zone | C1: State
A2: 200 | B2: 64 | C2: =IF(OR(A2<=299,AND(A2<3000,A2>=1000)),"NSW",IF(AND(A2<=999,A2>=800),"NT",IF(OR(AND(A2<=8999,A2>=8000),AND(A2<=3999,A2>=3000)),"VIC",IF(OR(AND(A2<=9999,A2>=9000),AND(A2<=4999,A2>=4000)),"QLD",IF(AND(A2<=5999,A2>=5000),"SA",IF(AND(A2<=6999,A2>=6000),"WA","TAS")))))) -> NSW
A3: 211 | B3: 64 | C3: NSW
A4: 212 | B4: 64 | C4: NSW
A5: 230 | B5: 64 | C5: NSW
A6: 237 | B6: 64 | C6: NSW
A7: 238 | B7: 64 | C7: NSW
A8: 239 | B8: 64 | C8: NSW
A9: 240 | B9: 64 | C9: NSW
A10: 241 | B10: 64 | C10: NSW
A11: 242 | B11: 64 | C11: NSW
A12: 243 | B12: 64 | C12: NSW
A13: 244 | B13: 64 | C13: NSW
A14: 245 | B14: 64 | C14: NSW
A15: 246 | B15: 64 | C15: NSW
A16: 247 | B16: 64 | C16: NSW
A17: 248 | B17: 64 | C17: NSW
A18: 249 | B18: 64 | C18: NSW
A19: 250 | B19: 64 | C19: NSW
A20: 251 | B20: 64 | C20: NSW
A21: 252 | B21: 64 | C21: NSW
A22: 253 | B22: 64 | C22: NSW
A23: 254 | B23: 64 | C23: NSW
A24: 255 | B24: 64 | C24: NSW
A25: 256 | B25: 64 | C25: NSW
A26: 257 | B26: 64 | C26: NSW
A27: 258 | B27: 64 | C27: NSW
A28: 259 | B28: 64 | C28: NSW
A29: 260 | B29: 64 | C29: NSW
A30: 261 | B30: 64 | C30: NSW
A31: 262 | B31: 64 | C31: NSW
A32: 263 | B32: 64 | C32: NSW
A33: 264 | B33: 64 | C33: NSW
A34: 266 | B34: 64 | C34: NSW
A35: 267 | B35: 64 | C35: NSW
A36: 268 | B36: 64 | C36: NSW
A37: 269 | B37: 64 | C37: NSW
A38: 270 | B38: 64 | C38: NSW
A39: 271 | B39: 64 | C39: NSW
A40: 272 | B40: 64 | C40: NSW
A41: 273 | B41: 64 | C41: NSW
A42: 274 | B42: 64 | C42: NSW
A43: 275 | B43: 64 | C43: NSW
A44: 276 | B44: 64 | C44: NSW
A45: 277 | B45: 64 | C45: NSW
A46: 278 | B46: 64 | C46: NSW
A47: 279 | B47: 64 | C47: NSW
A48: 280 | B48: 64 | C48: NSW
A49: 281 | B49: 64 | C49: NSW
A50: 282 | B50: 64 | C50: NSW
A51: 283 | B51: 64 | C51: NSW
A52: 284 | B52: 64 | C52: NSW
A53: 285 | B53: 64 | C53: NSW
A54: 286 | B54: 64 | C54: NSW
A55: 287 | B55: 64 | C55: NSW
A56: 288 | B56: 64 | C56: NSW
A57: 289 | B57: 64 | C57: NSW
A58: 290 | B58: 64 | C58: NSW
A59: 291 | B59: 64 | C59: NSW
A60: 293 | B60: 64 | C60: NSW
A61: 294 | B61: 64 | C61: NSW
A62: 295 | B62: 64 | C62: NSW
A63: 296 | B63: 64 | C63: NSW
A64: 297 | B64: 64 | C64: NSW
A65: 298 | B65: 64 | C65: NSW
A66: 299 | B66: 64 | C66: =IF(OR(A66<=299,AND(A66<3000,A66>=1000)),"NSW",IF(AND(A66<=999,A66>=800),"NT",IF(OR(AND(A66<=8999,A66>=8000),AND(A66<=3999,A66>=3000)),"VIC",IF(OR(AND(A66<=9999,A66>=9000),AND(A66<=4999,A66>=4000)),"QLD",IF(AND(A66<=5999,A66>=5000),"SA",IF(AND(A66<=6999,A66>=6000),"WA","TAS")))))) -> NSW
A67: 800 | B67: 66 | C67: NT
A68: 801 | B68: 66 | C68: NT
A69: 804 | B69: 66 | C69: NT
A70: 810 | B70: 66 | C70: NT
A71: 811 | B71: 66 | C71: NT
A72: 812 | B72: 66 | C72: NT
A73: 813 | B73: 66 | C73: NT
A74: 814 | B74: 66 | C74: NT
A75: 815 | B75: 66 | C75: NT
A76: 820 | B76: 66 | C76: NT
A77: 821 | B77: 66 | C77: NT
A78: 822 | B78: 66 | C78: NT
A79: 828 | B79: 66 | C79: NT
A80: 830 | B80: 66 | C80: NT
A81: 831 | B81: 66 | C81: NT
A82: 832 | B82: 66 | C82: NT
A83: 835 | B83: 66 | C83: NT
A84: 836 | B84: 66 | C84: NT
A85: 837 | B85: 66 | C85: NT
A86: 840 | B86: 66 | C86: NT
A87: 845 | B87: 66 | C87: NT
A88: 846 | B88: 66 | C88: NT
A89: 847 | B89: 66 | C89: NT
A90: 850 | B90: 66 | C90: NT
A91: 851 | B91: 66 | C91: NT
A92: 852 | B92: 66 | C92: NT
A93: 853 | B93: 66 | C93: NT
A94: 854 | B94: 66 | C94: NT
A95: 860 | B95: 70 | C95: NT
A96: 861 | B96: 70 | C96: NT
A97: 862 | B97: 70 | C97: NT
A98: 870 | B98: 71 | C98: NT
A99: 871 | B99: 71 | C99: NT
A100: 872 | B100: 71 | C100: NT
A101: 880 | B101: 67 | C101: NT
A102: 881 | B102: 67 | C102: NT
A103: 885 | B103: 67 | C103: NT
A104: 886 | B104: 66 | C104: NT
A105: 909 | B105: 66 | C105: NT
A106: 1001 | B106: 63 | C106: NSW
A107: 1002 | B107: 63 | C107: NSW
A108: 1003 | B108: 63 | C108: NSW
A109: 1004 | B109: 63 | C109: NSW
A110: 1005 | B110: 63 | C110: NSW
A111: 1006 | B111: 63 | C111: NSW
A112: 1007 | B112: 63 | C112: NSW
A113: 1008 | B113: 63 | C113: NSW
A114: 1009 | B114: 63 | C114: NSW
A115: 1010 | B115: 63 | C115: NSW
A116: 1011 | B116: 63 | C116: NSW
A117: 1012 | B117: 63 | C117: NSW
A118: 1013 | B118: 63 | C118: NSW
A119: 1015 | B119: 63 | C119: NSW
A120: 1016 | B120: 63 | C120: NSW
A121: 1017 | B121: 63 | C121: NSW
A122: 1018 | B122: 63 | C122: NSW
A123: 1019 | B123: 63 | C123: NSW
A124: 1020 | B124: 63 | C124: NSW
A125: 1021 | B125: 63 | C125: NSW
A126: 1022 | B126: 63 | C126: NSW
A127: 1023 | B127: 63 | C127: NSW
A128: 1024 | B128: 63 | C128: NSW
A129: 1025 | B129: 63 | C129: NSW
A130: 1026 | B130: 63 | C130: =IF(OR(A130<=299,AND(A130<3000,A130>=1000)),"NSW",IF(AND(A130<=999,A130>=800),"NT",IF(OR(AND(A130<=8999,A130>=8000),AND(A130<=3999,A130>=3000)),"VIC",IF(OR(AND(A130<=9999,A130>=9000),AND(A130<=4999,A130>=4000)),"QLD",IF(AND(A130<=5999,A130>=5000),"SA",IF(AND(A130<=6999,A130>=6000),"WA","TAS")))))) -> NSW
A131: 1027 | B131: 63 | C131: NSW
A132: 1028 | B132: 63 | C132: NSW
A133: 1029 | B133: 63 | C133: NSW
A134: 1030 | B134: 63 | C134: NSW
A135: 1031 | B135: 63 | C135: NSW
A136: 1032 | B136: 63 | C136: NSW
A137: 1033 | B137: 63 | C137: NSW
A138: 1034 | B138: 63 | C138: NSW
A139: 1035 | B139: 63 | C139: NSW
A140: 1036 | B140: 63 | C140: NSW
A141: 1037 | B141: 63 | C141: NSW
A142: 1038 | B142: 63 | C142: NSW
A143: 1039 | B143: 63 | C143: NSW
A144: 1040 | B144: 63 | C144: NSW
A145: 1041 | B145: 63 | C145: NSW
A146: 1042 | B146: 63 | C146: NSW
A147: 1043 | B147: 63 | C147: NSW
A148: 1044 | B148: 63 | C148: NSW
A149: 1045 | B149: 63 | C149: NSW
A150: 1046 | B150: 63 | C150: NSW
A151: 1047 | B151: 63 | C151: NSW
A152: 1048 | B152: 63 | C152: NSW
A153: 1049 | B153: 63 | C153: NSW
A154: 1050 | B154: 63 | C154: NSW
A155: 1051 | B155: 63 | C155: NSW
A156: 1052 | B156: 63 | C156: NSW
A157: 1053 | B157: 63 | C157: NSW
A158: 1054 | B158: 63 | C158: NSW
A159: 1055 | B159: 63 | C159: NSW
A160: 1056 | B160: 63 | C160: NSW
A161: 1057 | B161: 63 | C161: NSW
A162: 1058 | B162: 63 | C162: NSW
A163: 1059 | B163: 63 | C163: NSW
A164: 1060 | B164: 63 | C164: NSW
A165: 1061 | B165: 63 | C165: NSW
A166: 1062 | B166: 63 | C166: NSW
A167: 1063 | B167: 63 | C167: NSW
A168: 1064 | B168: 63 | C168: NSW
A169: 1065 | B169: 63 | C169: NSW
A170: 1066 | B170: 63 | C170: NSW
A171: 1067 | B171: 63 | C171: NSW
A172: 1068 | B172: 63 | C172: NSW
A173: 1069 | B173: 63 | C173: NSW
A174: 1070 | B174: 63 | C174: NSW
A175: 1071 | B175: 63 | C175: NSW
A176: 1072 | B176: 63 | C176: NSW
A177: 1073 | B177: 63 | C177: NSW
A178: 1074 | B178: 63 | C178: NSW
A179: 1075 | B179: 63 | C179: NSW
A180: 1076 | B180: 63 | C180: NSW
A181: 1077 | B181: 63 | C181: NSW
A182: 1078 | B182: 63 | C182: NSW
A183: 1079 | B183: 63 | C183: NSW
A184: 1080 | B184: 63 | C184: NSW
A185: 1081 | B185: 63 | C185: NSW
A186: 1082 | B186: 63 | C186: NSW
A187: 1083 | B187: 63 | C187: NSW
A188: 1084 | B188: 63 | C188: NSW
A189: 1085 | B189: 63 | C189: NSW
A190: 1086 | B190: 63 | C190: NSW
A191: 1087 | B191: 63 | C191: NSW
A192: 1088 | B192: 63 | C192: NSW
A193: 1089 | B193: 63 | C193: NSW
A194: 1090 | B194: 63 | C194: =IF(OR(A194<=299,AND(A194<3000,A194>=1000)),"NSW",IF(AND(A194<=999,A194>=800),"NT",IF(OR(AND(A194<=8999,A194>=8000),AND(A194<=3999,A194>=3000)),"VIC",IF(OR(AND(A194<=9999,A194>=9000),AND(A194<=4999,A194>=4000)),"QLD",IF(AND(A194<=5999,A194>=5000),"SA",IF(AND(A194<=6999,A194>=6000),"WA","TAS")))))) -> NSW
A195: 1091 | B195: 63 | C195: NSW
A196: 1092 | B196: 63 | C196: NSW
A197: 1093 | B197: 63 | C197: NSW
A198: 1094 | B198: 63 | C198: NSW
A199: 1095 | B199: 63 | C199: NSW
A200: 1096 | B200: 63 | C200: NSW
... 3527 more rows

Sheet Climate_zones (hidden)
A1: Climate_id | B1: Name | C1: State_id | D1: Hdd | E1: Cdd
A2: 1 | B2: Kimberley | C2: 1 | D2: 6 | E2: 2016
A3: 2 | B3: Pilbara | C3: 1 | D3: 27 | E3: 1782
A4: 3 | B4: Gascoyne | C4: 1 | D4: 159 | E4: 1001
A5: 4 | B5: Interior | C5: 1 | D5: 312 | E5: 770
A6: 5 | B6: Central West | C6: 1 | D6: 446 | E6: 553
A7: 6 | B7: Central Wheat Belt | C7: 1 | D7: 939 | E7: 327
A8: 7 | B8: Lower West | C8: 1 | D8: 680 | E8: 340
A9: 8 | B9: Great Southern | C9: 1 | D9: 1249 | E9: 185
A10: 9 | B10: South West | C10: 1 | D10: 1048 | E10: 274
A11: 10 | B11: Southern Coastal | C11: 1 | D11: 1112 | E11: 132
A12: 11 | B12: Goldfields | C12: 1 | D12: 899 | E12: 243
A13: 12 | B13: Eucla | C13: 1 | D13: 768 | E13: 360
A14: 13 | B14: Mallee | C14: 2 | D14: 1160 | E14: 201
A15: 14 | B15: Wimmera | C15: 2 | D15: 1610 | E15: 120
A16: 15 | B16: Western District | C16: 2 | D16: 2049 | E16: 104
A17: 16 | B17: Northern Country | C17: 2 | D17: 1595 | E17: 248
A18: 17 | B18: North Central | C18: 2 | D18: 1846 | E18: 145
A19: 18 | B19: Central | C19: 2 | D19: 1590 | E19: 100
A20: 19 | B20: Northeast | C20: 2 | D20: 2031 | E20: 194
A21: 20 | B21: West and South Gippsland | C21: 2 | D21: 2021 | E21: 136
A22: 21 | B22: East Gippsland | C22: 2 | D22: 1569 | E22: 180
A23: 22 | B23: Northwest Coast and King Island | C23: 3 | D23: 1997 | E23: 52
A24: 23 | B24: West & South Coast & Highlands | C24: 3 | D24: 2516 | E24: 48
A25: 24 | B25: Central Plateau and Upper Derwent Valley | C25: 3 | D25: 3056 | E25: 34
A26: 25 | B26: Central North and Midlands | C26: 3 | D26: 2421 | E26: 25
A27: 26 | B27: South East, Huon & Channel and Lower Derwent Valley | C27: 3 | D27: 2049 | E27: 29
A28: 27 | B28: North East and Flinders Island | C28: 3 | D28: 1903 | E28: 137
A29: 28 | B29: East Coast | C29: 3 | D29: 1869 | E29: 80
A30: 29 | B30: Western Agricultural | C30: 4 | D30: 963 | E30: 229
A31: 30 | B31: Northwest Pastoral | C31: 4 | D31: 615 | E31: 286
A32: 31 | B32: Northeast Pastoral | C32: 4 | D32: 746 | E32: 340
A33: 32 | B33: Northern Agricultural | C33: 4 | D33: 954 | E33: 354
A34: 33 | B34: Central | C34: 4 | D34: 1554 | E34: 132
A35: 34 | B35: Murray | C35: 4 | D35: 1258 | E35: 173
A36: 35 | B36: Southeast | C36: 4 | D36: 1813 | E36: 61
A37: 36 | B37: Peninsula | C37: 5 | D37: 0 | E37: 2835
A38: 37 | B38: Gulf Country | C38: 5 | D38: 4 | E38: 2288
A39: 38 | B39: Northern Goldfields and Upper Flinders | C39: 5 | D39: 52 | E39: 1470
A40: 39 | B40: Northern Tropical Coast and Tablelands | C40: 5 | D40: 4 | E40: 2211
A41: 41 | B41: Herbert and Lower Burdekin | C41: 5 | D41: 17 | E41: 2429
A42: 42 | B42: Central Coast - Whitsundays | C42: 5 | D42: 98 | E42: 1950
A43: 43 | B43: Capricornia | C43: 5 | D43: 140 | E43: 1424
A44: 44 | B44: Central Highlands - Coalfields | C44: 5 | D44: 207 | E44: 1143
A45: 45 | B45: Central West | C45: 5 | D45: 255 | E45: 1024
A46: 46 | B46: Northwest | C46: 5 | D46: 137 | E46: 955
A47: 47 | B47: Channel Country | C47: 5 | D47: 380 | E47: 820
A48: 48 | B48: Maranoa and Warrego | C48: 5 | D48: 603 | E48: 844
A49: 49 | B49: Darling Downs and Granite Belt | C49: 5 | D49: 660 | E49: 876
A50: 50 | B50: Wide Bay and Burnett | C50: 5 | D50: 229 | E50: 1375
A51: 51 | B51: Southeast Coast | C51: 5 | D51: 325 | E51: 1043
A52: 52 | B52: Upper Western | C52: 6 | D52: 813 | E52: 523
A53: 53 | B53: Lower Western | C53: 6 | D53: 1112 | E53: 230
A54: 54 | B54: Riverina | C54: 6 | D54: 1330 | E54: 358
A55: 55 | B55: North West Slopes and Plains | C55: 6 | D55: 944 | E55: 470
A56: 56 | B56: Central West Slopes and Plains | C56: 6 | D56: 1164 | E56: 283
A57: 57 | B57: South West Slopes | C57: 6 | D57: 1608 | E57: 219
A58: 58 | B58: Northern Rivers | C58: 6 | D58: 401 | E58: 1122
A59: 59 | B59: Northern Tablelands | C59: 6 | D59: 1769 | E59: 206
A60: 60 | B60: Mid-North Coast | C60: 6 | D60: 596 | E60: 853
A61: 61 | B61: Hunter | C61: 6 | D61: 616 | E61: 653
A62: 62 | B62: Central Tablelands | C62: 6 | D62: 2023 | E62: 89
A63: 63 | B63: Metropolitan | C63: 6 | D63: 642 | E63: 541
A64: 64 | B64: Southern Tablelands | C64: 6 | D64: 2186 | E64: 80
A65: 65 | B65: South Coast & Illawarra | C65: 6 | D65: 690 | E65: 577
A66: 66 | B66: Darwin - Daly | C66: 8 | D66: 0 | E66: 2895
A67: 67 | B67: Arnhem | C67: 8 | D67: 0 | E67: 3344
A68: 68 | B68: Roper - McArthur | C68: 8 | D68: 10 | E68: 2165
A69: 69 | B69: Victoria | C69: 8 | D69: 1 | E69: 2369
A70: 70 | B70: Barkly | C70: 8 | D70: 79 | E70: 958
A71: 71 | B71: Alice Springs | C71: 8 | D71: 660 | E71: 379
